bitfinex/quotes_ETHUSD_20241217
["timestamp","ask_amount","ask_price","bid_price","bid_amount"]
[1734474102967,4.48606811,3919.3,3918.4,1e-05]
[1734474103277,2.55182,3918.8,3918.4,1e-05]
[1734474103500,1.12367811,3919.0,3918.4,1e-05]
[1734474103975,2.55199,3918.5,3918.4,1e-05]
[1734474104726,3.36289,3918.5,3918.4,1e-05]
[1734474105364,4.67228527,3918.5,3918.4,1e-05]
[1734474105560,4.46245349,3918.5,3918.4,1e-05]
[1734474105777,5.7716281,3918.5,3918.4,1e-05]
[1734474105978,6.82954827,3918.5,3918.4,1e-05]
[1734474106193,5.7716281,3918.5,3918.4,1e-05]
[1734474106602,9.82954827,3918.5,3918.4,1e-05]
[1734474107880,11.06660827,3918.5,3918.4,1e-05]
[1734474108119,11.06660928,3918.5,3918.4,1e-05]
[1734474108323,11.0661685,3918.5,3918.4,1e-05]
[1734474108821,2.55232,3918.0,3917.9,0.005]
[1734474109117,3.138029,3918.0,3917.9,0.005]
[1734474109711,2.55232,3918.0,3917.9,0.005]
[1734474111896,3.30492,3918.0,3917.9,0.005]
[1734474114313,3.30492,3918.0,3917.9,1e-05]
[1734474114506,6.30492,3918.0,3917.9,1e-05]
[1734474114703,7.6119179,3918.0,3917.9,1e-05]
[1734474114924,9.2422881,3918.0,3917.9,1e-05]
[1734474115106,10.29581408,3918.0,3917.9,1e-05]
[1734474115701,10.84581408,3918.0,3917.9,1e-05]
[1734474116125,9.7922881,3918.0,3917.9,1e-05]
[1734474117396,11.37467616,3918.0,3917.9,1e-05]
[1734474117597,9.7922881,3918.0,3917.9,1e-05]
[1734474118932,5.9329702,3918.0,3915.4,2.17710929]
[1734474119098,5.9329702,3918.0,3915.7,0.27151558]
[1734474119099,3.94236284,3917.9,3915.7,0.27151558]
[1734474119300,3.94236284,3917.9,3915.8,0.10360447]
[1734474119607,3.94236284,3917.9,3915.7,0.52688558]
[1734474119608,2.55277,3917.4,3916.2,0.25534]
[1734474120003,2.55277,3917.4,3916.3,0.25534]
[1734474120409,2.55277,3917.4,3915.7,0.27151558]
[1734474120643,1.05331403,3918.2,3915.9,3.55]
[1734474120932,0.7526,3918.3,3916.1,0.55]
[1734474120933,2.5524,3917.9,3916.1,0.55]
[1734474121134,2.5524,3917.9,3916.2,0.10358919]
[1734474121334,2.5524,3917.9,3916.3,0.10356711]
[1734474121636,2.5524,3917.9,3916.7,0.25531]
[1734474121837,0.58256463,3918.1,3916.7,0.25531]
[1734474121838,2.55245,3917.8,3916.7,0.25531]
[1734474122699,2.55245,3917.8,3916.8,0.2553]
[1734474123634,0.31350146,3917.8,3916.0,3.66327197]
[1734474123855,0.31350146,3917.8,3916.2,0.25534]
[1734474123856,0.8076,3917.7,3916.2,0.25534]
[1734474123999,0.8076,3917.7,3916.3,0.1035689]
[1734474124340,0.8076,3917.7,3916.2,0.25534]
[1734474124341,2.5528,3917.3,3916.2,0.25534]
[1734474124538,2.55285,3917.2,3916.0,0.25536]
[1734474124829,2.55291,3917.1,3916.1,0.35891723]
[1734474125039,2.55291,3917.1,3916.1,0.25535]
[1734474125395,2.55291,3917.1,3916.2,0.10355611]
[1734474125636,2.55291,3917.1,3916.1,0.25535]
[1734474125837,2.55291,3917.1,3915.6,3.25538]
[1734474126001,2.55313,3916.8,3915.8,0.25537]
[1734474126200,2.55313,3916.8,3915.9,0.10355866]
[1734474127332,0.8076,3917.1,3915.9,0.10355866]
[1734474127333,2.55331,3916.5,3915.9,0.10355866]
[1734474127502,2.55331,3916.5,3915.5,0.61770509]
[1734474127697,2.55331,3916.5,3915.6,0.10360114]
[1734474127910,2.55323,3916.6,3915.7,0.10360114]
[1734474128339,2.55323,3916.6,3915.8,0.10360114]
[1734474128551,2.55323,3916.6,3915.5,0.51408324]
[1734474128552,2.55323,3916.6,3915.9,0.10360114]
[1734474128755,2.55307,3916.9,3915.5,0.25869324]
[1734474129034,2.55307,3916.9,3915.8,0.25537]
[1734474129203,2.55307,3916.9,3915.9,0.10363474]
[1734474130299,2.55312,3916.8,3915.9,0.10363474]
[1734474130506,2.55312,3916.8,3916.0,0.10363474]
[1734474130700,2.55312,3916.8,3915.5,0.25869324]
[1734474130701,0.336072,3916.8,3915.5,0.25869324]
[1734474131033,0.336072,3916.8,3915.6,0.10373131]
[1734474131246,0.8076,3917.1,3915.8,0.25537]
[1734474131247,2.55306,3916.9,3915.8,0.25537]
[1734474131534,2.55306,3916.9,3915.9,0.10373131]
[1734474131703,0.8076,3917.1,3915.8,0.25537]
[1734474131908,3.36051,3917.1,3916.0,0.25535]
[1734474132105,2.55295,3917.1,3916.1,0.10378481]
[1734474132305,2.889005,3917.1,3915.5,0.25869324]
[1734474132501,2.55285,3917.2,3916.1,0.25535]
[1734474132705,2.55285,3917.2,3916.2,0.10384547]
[1734474132925,2.55285,3917.2,3916.1,0.25535]
[1734474133246,2.55285,3917.2,3916.2,0.1038482]
[1734474133397,2.55285,3917.2,3916.3,0.1038482]
[1734474133600,0.336045,3917.1,3916.1,0.25535]
[1734474133800,0.8076,3917.4,3916.2,0.1039091]
[1734474133801,2.55288,3917.2,3916.2,0.1039091]
[1734474134003,2.55288,3917.2,3916.3,0.1039091]
[1734474134313,6.04327822,3917.6,3916.4,0.35928961]
[1734474134314,2.55258,3917.6,3916.4,0.35928961]
[1734474134515,2.55258,3917.6,3916.5,0.10395961]
[1734474134827,2.55258,3917.6,3916.6,0.10395961]
[1734474135006,0.66736815,3917.5,3916.4,0.25533]
[1734474135206,0.66736815,3917.5,3916.5,0.10397468]
[1734474135406,0.66736815,3917.5,3916.4,0.25533]
[1734474135407,3.22002815,3917.5,3916.6,0.10397468]
[1734474135624,3.22002815,3917.5,3916.5,0.25532]
[1734474135625,0.66736815,3917.5,3916.5,0.25532]
[1734474135838,0.66736815,3917.5,3916.6,0.10397979]
[1734474136045,0.40275582,3917.4,3916.7,0.10397979]
[1734474136211,0.40275582,3917.4,3916.5,0.25532]
[1734474136416,0.40275582,3917.4,3916.6,0.10399835]
[1734474136750,0.40275582,3917.4,3916.7,0.10399835]
[1734474136947,0.40275582,3917.4,3916.5,0.25532]
[1734474137336,0.29553958,3917.3,3916.6,0.10401258]
[1734474137546,0.29553958,3917.3,3916.7,0.10401258]
[1734474137850,0.42263184,3917.3,3916.5,0.25532]
[1734474138015,0.42263184,3917.3,3916.6,0.10401789]
[1734474138211,0.42263184,3917.3,3916.7,0.10401789]
[1734474138569,0.42263184,3917.3,3916.8,0.10401789]
[1734474138732,0.42263184,3917.3,3916.5,0.25532]
[1734474139060,0.42263184,3917.3,3916.6,0.10402226]
[1734474139241,0.42263184,3917.3,3916.7,0.10402226]
[1734474139553,0.42263184,3917.3,3916.4,0.25533]
[1734474139845,0.42263184,3917.3,3916.5,0.10402716]
[1734474140066,0.29753618,3917.2,3916.6,0.10402716]
[1734474140248,0.29753618,3917.2,3916.7,0.10402716]
[1734474140430,0.29753618,3917.2,3916.8,0.10404541]
[1734474140631,0.29753618,3917.2,3916.4,0.25533]
[1734474140831,0.29753618,3917.2,3916.5,0.10404395]
[1734474141011,0.29753618,3917.2,3916.6,0.10404395]
[1734474141216,0.29753618,3917.2,3916.7,0.10404395]
[1734474141513,0.29753618,3917.2,3916.8,0.10406287]
[1734474141855,0.29753618,3917.2,3916.4,0.25533]
[1734474142149,0.29753618,3917.2,3916.5,0.10406464]
[1734474142354,0.29753618,3917.2,3916.6,0.10406464]
[1734474142518,0.29753618,3917.2,3916.7,0.10406464]
[1734474142714,0.29753618,3917.2,3916.8,0.10406464]
[1734474142953,0.29753618,3917.2,3916.4,0.25533]
[1734474143154,0.29753618,3917.2,3916.5,0.10406837]
[1734474143328,0.29753618,3917.2,3916.6,0.10406837]
[1734474143529,0.29753618,3917.2,3916.7,0.10406837]
[1734474143754,0.29753618,3917.2,3916.1,0.25535]
[1734474144065,0.29753618,3917.2,3916.2,0.35941788]
[1734474144219,0.29753618,3917.2,3916.3,0.10407788]
[1734474144552,0.29753618,3917.2,3916.4,0.10407788]
[1734474144853,0.29753618,3917.2,3916.5,0.10407788]
[1734474145057,0.29774584,3917.1,3916.6,0.10407788]
[1734474145257,2.55308,3916.9,3915.8,0.25537]
[1734474145552,2.55307,3916.9,3915.9,0.10409446]
[1734474145855,2.55307,3916.9,3916.0,0.10409446]
[1734474146150,2.92143158,3916.8,3916.1,0.10409446]
[1734474146357,2.92143158,3916.8,3916.2,0.10409446]
[1734474146521,2.92143158,3916.8,3916.3,0.10409446]
[1734474146715,2.92143158,3916.8,3915.8,0.25537]
[1734474146942,1.1253959,3916.5,3916.4,0.10408982]
[1734474147143,0.36833158,3916.8,3915.2,0.005]
[1734474147453,2.55304,3916.9,3915.8,0.25536]
[1734474147963,3.0,3916.7,3915.9,0.10409224]
[1734474148165,3.0,3916.7,3916.0,0.10409224]
[1734474148365,1.05331403,3916.9,3916.1,0.10409224]
[1734474148572,1.05331403,3916.9,3915.3,0.27918224]
[1734474148573,2.55319,3916.7,3916.2,0.10409224]
[1734474148735,3.3160132,3916.7,3915.3,0.27918224]
[1734474149053,3.3160132,3916.7,3915.6,0.25538]
[1734474149236,3.3160132,3916.7,3915.7,0.10409538]
[1734474149561,3.3160132,3916.7,3915.8,0.10409538]
[1734474149764,2.55326,3916.6,3915.9,0.10409538]
[1734474149969,2.55332,3916.5,3916.0,0.10409538]
[1734474150192,2.55332,3916.5,3915.4,0.2554]
[1734474150394,2.55332,3916.5,3916.1,0.10408336]
[1734474150532,2.55332,3916.5,3915.5,0.25539]
[1734474150739,2.55332,3916.5,3915.6,0.10407898]
[1734474150933,1.05331403,3916.9,3915.7,1.22947488]
[1734474151242,1.05331403,3917.0,3916.0,0.25536]
[1734474151463,1.05331403,3917.0,3915.8,0.10407898]
[1734474151464,1.31543817,3916.9,3916.1,0.10407898]
[1734474151674,1.05331403,3916.9,3916.2,0.10407898]
[1734474151831,1.1253959,3917.2,3916.3,0.10407898]
[1734474151832,1.05331403,3917.0,3916.3,0.10407898]
[1734474152029,1.05331403,3917.0,3916.4,0.10407898]
[1734474152030,1.69741806,3917.0,3916.4,0.10407898]
[1734474152262,1.69741806,3917.0,3916.1,0.25534]
[1734474152263,1.31549937,3916.9,3916.5,0.10407898]
[1734474152463,1.69741806,3917.0,3916.6,0.10407898]
[1734474152780,1.3156381,3916.9,3916.1,0.25534]
[1734474152938,1.69741806,3917.0,3916.2,0.1040841]
[1734474153276,1.31568665,3916.9,3916.3,0.1040841]
[1734474153477,1.69741806,3917.0,3916.4,0.1040841]
[1734474153637,2.36910226,3916.9,3916.5,0.1040841]
[1734474153984,2.36910226,3916.8,3916.6,0.1040841]
[1734474154187,1.05331403,3916.8,3916.1,0.25534]
[1734474154476,1.05331403,3916.8,3916.2,0.1041013]
[1734474154680,1.05331403,3916.8,3916.3,0.1041013]
[1734474154844,1.05331403,3916.9,3916.4,0.1041013]
[1734474155049,1.05331403,3916.9,3916.5,0.1041013]
[1734474155246,1.83737494,3916.9,3916.1,0.25534]
[1734474155469,1.83737494,3916.9,3916.2,0.10410794]
[1734474155470,1.31552521,3916.8,3916.2,0.10410794]
[1734474155642,1.05331403,3916.8,3916.3,0.10410794]
[1734474155850,1.05331403,3916.8,3916.1,0.25534]
[1734474155851,1.31552521,3916.8,3916.4,0.10410794]
[1734474156055,1.83737494,3916.9,3916.5,0.10410794]
[1734474156254,1.83737494,3916.9,3915.9,0.25536]
[1734474156255,2.36889523,3916.8,3915.9,0.25536]
[1734474156583,0.78406091,3916.9,3916.0,0.35947189]
[1734474156584,1.05331403,3916.9,3916.0,0.35947189]
[1734474156785,2.36903273,3916.9,3916.0,0.35946842]
[1734474156929,1.05331403,3916.8,3916.1,0.10410842]
[1734474157134,1.05331403,3916.8,3915.9,0.18887744]
[1734474157333,1.05331403,3916.8,3916.0,0.10411092]
[1734474157535,1.05331403,3916.8,3915.9,0.18887744]
[1734474157536,1.05331403,3916.8,3916.1,0.10411092]
[1734474157832,1.05331403,3916.8,3916.2,0.10411092]
[1734474158034,1.05331403,3916.9,3916.3,0.10411092]
[1734474158239,2.36921709,3916.8,3916.4,0.10411092]
[1734474158581,2.36921709,3916.8,3916.5,0.10411092]
[1734474158783,1.89670901,3916.9,3916.6,0.10411092]
[1734474158933,1.31590988,3916.8,3915.7,1.3780344]
[1734474159133,1.05331403,3916.8,3915.8,0.40132243]
[1734474159369,1.05331403,3916.9,3915.9,0.10410881]
[1734474159566,2.36924678,3916.8,3916.0,0.10410881]
[1734474159789,2.36924678,3916.8,3916.1,0.10410881]
[1734474159790,1.05331403,3916.8,3916.1,0.10410881]
[1734474160019,1.05331403,3916.8,3916.2,0.10410881]
[1734474160378,1.05331403,3916.8,3916.3,0.10410881]
[1734474160585,1.05331403,3916.8,3916.4,0.10410881]
[1734474160929,2.36915855,3916.8,3916.5,0.10410881]
[1734474161072,1.05331403,3916.8,3916.6,0.10410881]
[1734474161274,1.05331403,3916.8,3915.8,0.29721362]
[1734474161473,1.05331403,3916.8,3915.9,0.27164103]
[1734474161703,2.36911936,3916.8,3916.0,0.10411623]
[1734474162013,1.31580533,3916.7,3916.1,0.10411623]
[1734474162315,1.05331403,3916.8,3916.2,0.10411623]
[1734474162521,1.05331403,3916.8,3916.3,0.10411623]
[1734474162724,1.05331403,3916.8,3916.4,0.10411623]
[1734474163009,1.05331403,3916.8,3916.5,0.10411623]
[1734474163301,1.05331403,3916.8,3915.9,0.1675248]
[1734474163674,1.05331403,3916.8,3916.0,0.10410742]
[1734474163984,1.05331403,3916.8,3916.1,0.10410742]
[1734474164198,1.05331403,3916.8,3916.2,0.10410742]
[1734474164376,1.05331403,3916.8,3916.3,0.10410742]
[1734474164571,1.05331403,3916.8,3916.4,0.10410742]
[1734474164773,1.05331403,3916.8,3916.5,0.10410742]
[1734474165104,1.05331403,3916.8,3916.6,0.10410742]
[1734474165315,1.05331403,3916.9,3915.8,1.61273454]
[1734474165608,1.05331403,3916.9,3915.9,0.10410785]
[1734474165805,1.05331403,3916.9,3916.0,0.10410785]
[1734474166008,1.05331403,3916.9,3916.1,0.10410785]
[1734474166211,2.36884196,3916.9,3916.2,0.10410785]
[1734474166511,2.36884196,3916.9,3916.3,0.10410785]
[1734474166512,1.31552793,3916.8,3916.3,0.10410785]
[1734474166671,1.05331403,3916.9,3916.3,0.10410785]
[1734474166874,4.60999899,3917.5,3915.8,1.9280344]
[1734474166875,1.05331403,3917.0,3916.4,0.10410785]
[1734474167102,1.05331403,3917.0,3916.5,0.10410785]
[1734474167312,1.05331403,3917.2,3916.6,0.10410785]
[1734474167627,1.05331403,3917.2,3915.9,2.71949772]
[1734474167628,2.36979823,3917.2,3916.7,0.10410785]
[1734474167798,2.36979823,3917.2,3915.9,2.71949772]
[1734474167799,1.05331403,3917.3,3916.8,0.10410785]
[1734474167997,1.05331403,3917.3,3916.9,0.10410785]
[1734474168206,1.05331403,3917.4,3917.0,0.10410785]
[1734474168404,1.05331403,3917.4,3917.1,0.10410785]
[1734474168599,1.05331403,3917.4,3917.2,0.10410785]
[1734474168795,1.05331403,3917.4,3916.3,1.06273454]
[1734474169001,1.05331403,3917.4,3916.4,0.36975677]
[1734474169237,1.05331403,3917.4,3916.5,0.10407313]
[1734474169440,1.05331403,3917.4,3916.6,0.10407313]
[1734474169441,1.05331403,3917.3,3916.6,0.10407313]
[1734474169584,1.05331403,3917.3,3916.7,0.10407313]
[1734474169790,1.05331403,3917.3,3916.8,0.10407313]
[1734474169992,1.05331403,3917.4,3916.9,0.10407313]
[1734474170222,1.05331403,3917.4,3917.0,0.10407313]
[1734474170439,1.05331403,3917.4,3917.1,0.10407313]
[1734474170601,1.05331403,3917.4,3916.2,1.06273454]
[1734474170805,1.05331403,3917.3,3916.3,0.40126471]
[1734474171122,1.05331403,3917.3,3916.4,0.10405109]
[1734474171421,1.05331403,3917.3,3916.5,0.10405109]
[1734474171645,2.36982359,3917.3,3916.6,0.10405109]
[1734474171847,1.31650956,3917.2,3916.7,0.10405109]
[1734474172130,1.05331403,3917.3,3916.8,0.10405109]
[1734474172330,1.05331403,3917.3,3916.9,0.10405109]
[1734474172549,2.36963856,3917.2,3916.3,0.29721362]
[1734474172709,1.31625322,3917.1,3916.4,0.24003707]
[1734474172892,1.05331403,3917.2,3916.5,0.10404225]
[1734474173094,1.05331403,3917.2,3915.2,0.005]
[1734474173095,2.55395,3915.5,3915.2,0.005]
[1734474173289,3.0,3915.2,3914.5,0.005]
[1734474173484,2.55453,3914.6,3914.5,0.005]
[1734474173708,5.86019437,3914.6,3914.5,0.005]
[1734474173910,5.86019437,3914.6,3913.7,0.26427013]
[1734474173911,9.68337017,3914.6,3913.7,0.26427013]
[1734474174111,1.1253959,3913.8,3913.3,0.1636831]
[1734474174310,1.1253959,3913.8,3913.6,0.16270601]
[1734474174311,7.76606899,3913.7,3913.6,0.16270601]
[1734474174510,2.55532,3913.4,3913.3,0.1636831]
[1734474174740,0.7964,3913.3,3911.9,2.90114525]
[1734474174938,1.1253959,3912.0,3911.9,2.90114525]
[1734474175150,3.30566437,3912.0,3911.9,2.90114525]
[1734474175355,2.89981227,3912.0,3911.9,2.90114525]
[1734474175555,1.31539758,3912.0,3911.9,2.90114525]
[1734474176059,2.36956647,3912.0,3911.9,2.90114525]
[1734474176226,0.7964,3911.8,3911.0,1.0]
[1734474176427,0.25,3907.8,3906.7,0.31148331]
[1734474176649,3.25,3907.4,3906.7,0.31148331]
[1734474176814,1.57476805,3907.5,3904.4,0.01160257]
[1734474177019,2.04937599,3907.4,3905.7,0.8272]
[1734474177219,3.78502909,3907.4,3906.1,0.26190213]
[1734474177465,3.78502909,3907.4,3906.1,0.00590213]
[1734474177466,4.08374978,3907.4,3906.1,0.00590213]
[1734474177680,7.740665,3907.4,3906.1,0.00590213]
[1734474177858,5.45678824,3907.4,3906.9,0.25595]
[1734474178016,5.45678824,3907.4,3906.1,0.00590213]
[1734474178017,8.59175154,3907.4,3906.7,0.25596]
[1734474178226,3.28734978,3907.4,3907.2,0.25593]
[1734474178532,3.1349633,3907.8,3906.6,3.8272]
[1734474178533,1.04505638,3907.7,3907.3,1.53103656]
[1734474178734,2.86264097,3907.4,3907.3,1.53103656]
[1734474179052,0.25,3906.9,3906.6,3.0]
[1734474179378,0.25,3906.9,3906.6,3.25597]
[1734474179379,2.6058657,3906.7,3906.6,3.25597]
[1734474179537,2.59875031,3906.8,3906.6,3.0]
[1734474179860,4.32065501,3907.8,3906.6,3.0]
[1734474179861,1.03976929,3907.4,3906.9,0.25595]
[1734474180031,1.039843,3907.6,3907.1,3.0155746]
[1734474180222,2.14952254,3909.7,3907.1,3.0155746]
[1734474180419,0.7964,3909.8,3907.2,3.02558833]
[1734474180420,0.12825068,3909.4,3907.2,3.02558833]
[1734474180662,0.7964,3909.8,3907.2,3.02558833]
[1734474180663,0.7964,3910.6,3907.8,1.3772]
[1734474180933,0.12862142,3910.2,3908.6,3.0155746]
[1734474181131,0.7964,3910.6,3908.7,3.0]
[1734474181357,0.7964,3910.6,3908.5,0.55]
[1734474181656,0.7964,3910.6,3908.4,3.0]
[1734474181857,0.7964,3910.6,3908.5,0.60155746]
[1734474182044,0.7964,3910.6,3908.2,3.0]
[1734474182357,0.12493958,3910.5,3908.2,3.0]
[1734474183255,0.12493958,3910.5,3908.3,0.55]
[1734474183421,0.7964,3910.6,3908.7,3.0]
[1734474183625,0.7964,3910.6,3908.1,0.55]
[1734474183857,0.7964,3910.6,3908.5,3.0155746]
[1734474184021,0.7964,3910.6,3908.6,0.30155746]
[1734474184655,0.7964,3910.6,3908.0,0.1512088]
[1734474184855,0.7964,3910.6,3908.4,3.0155746]
[1734474185258,0.12811502,3910.8,3908.4,3.0155746]
[1734474185757,0.55,3910.5,3908.0,0.12562993]
[1734474185988,0.55,3910.5,3908.0,3.12562993]
[1734474186261,0.55,3910.3,3908.1,0.69939853]
[1734474186459,0.55,3910.3,3908.0,0.12562993]
[1734474186460,0.55,3910.3,3908.0,3.14120453]
[1734474186754,0.55,3910.5,3908.1,3.0]
[1734474187153,0.55,3910.6,3908.1,3.0]
[1734474187358,0.55,3910.6,3908.2,3.0155746]
[1734474187564,3.0,3910.5,3908.3,3.0]
[1734474187734,1.63466749,3910.4,3908.4,0.60155746]
[1734474188061,1.63466749,3910.4,3907.8,0.8272]
[1734474188062,2.55771,3909.8,3907.8,0.8272]
[1734474188247,2.55771,3909.8,3907.3,0.60411629]
[1734474188248,3.55,3909.5,3907.3,0.60411629]
[1734474188560,0.55,3909.3,3907.0,0.7917]
[1734474188729,0.55,3909.1,3907.0,0.7917]
[1734474188929,1.28147113,3909.0,3907.0,0.7917]
[1734474189255,0.55,3909.2,3907.1,3.0155746]
[1734474189460,0.50998234,3909.1,3907.2,3.30155746]
[1734474189876,0.55,3909.6,3907.2,3.30155746]
[1734474190080,0.55,3909.4,3907.2,3.30155746]
[1734474190243,0.55,3909.4,3906.6,1.37775396]
[1734474190244,0.55,3909.2,3906.7,3.0]
[1734474190446,0.55,3909.2,3906.6,4.39332856]
[1734474190447,0.55,3909.2,3906.6,2.65853742]
[1734474190652,0.55,3909.2,3906.7,3.0]
[1734474190873,0.55,3909.2,3906.1,3.02147673]
[1734474191178,0.55,3909.2,3906.2,0.02559156]
[1734474191380,0.55,3909.0,3906.3,0.31723642]
[1734474191865,0.55,3909.0,3906.1,0.13119801]
[1734474192267,0.55,3909.0,3906.2,0.7917]
[1734474192472,0.55,3909.0,3906.1,0.13119801]
[1734474192473,3.0155746,3908.3,3906.1,0.00590213]
[1734474192654,3.5655746,3907.8,3906.1,0.00590213]
[1734474192980,0.55,3907.5,3906.1,0.00590213]
[1734474193181,0.799,3907.6,3906.1,0.00590213]
[1734474193182,0.55,3907.3,3906.1,0.00590213]
[1734474193850,6.5655746,3907.3,3906.1,0.00590213]
[1734474194047,0.55,3907.3,3906.1,0.00590213]
[1734474194448,3.55,3907.3,3906.1,0.00590213]
[1734474194655,0.12859348,3907.1,3904.3,2.21650638]
[1734474194885,0.0256055,3907.0,3904.4,0.57400589]
[1734474195185,0.799,3907.6,3904.4,0.57400589]
[1734474195186,0.799,3907.6,3905.4,3.27355248]
[1734474195359,0.0256055,3907.5,3905.4,3.27355248]
[1734474195559,0.799,3907.6,3905.4,3.27355248]
[1734474195758,0.799,3907.6,3905.0,0.57559864]
[1734474196064,0.799,3907.6,3905.2,0.55]
[1734474196261,0.0256055,3907.5,3905.3,0.38491511]
[1734474196585,2.55946,3907.1,3905.3,0.38491511]
[1734474196747,0.799,3907.6,3904.5,3.27355248]
[1734474196748,0.0256055,3907.0,3904.7,3.02560331]
[1734474196947,0.799,3907.6,3904.7,3.02560331]
[1734474196948,3.799,3907.6,3905.2,3.0]
[1734474197289,3.799,3907.6,3905.3,0.02559682]
[1734474197290,0.799,3907.6,3905.3,0.02559682]
[1734474197666,0.0256055,3907.5,3905.4,0.1035]
[1734474197880,0.799,3907.6,3905.7,3.27355248]
[1734474198065,0.799,3907.6,3905.8,3.38491493]
[1734474198585,0.799,3907.6,3905.8,3.41050895]
[1734474198964,0.799,3907.6,3905.5,0.55]
[1734474199156,0.03199255,3907.5,3905.5,0.55]
[1734474199353,0.03199257,3907.5,3905.5,0.55]
[1734474199555,0.799,3907.6,3905.5,0.55]
[1734474200081,0.03199256,3908.1,3905.5,0.8]
[1734474200266,0.03199256,3908.1,3905.4,0.1035]
[1734474200267,0.03198922,3908.1,3905.7,0.55]
[1734474200467,0.03198922,3908.1,3905.8,3.27355248]
[1734474201299,0.03198922,3908.1,3905.9,3.0]
[1734474201300,3.03198922,3908.1,3905.9,3.0]
[1734474201698,3.03198922,3908.1,3906.0,0.55]
[1734474201996,2.55901,3907.8,3905.6,0.96935]
[1734474202196,2.55901,3907.8,3905.3,3.0]
[1734474202197,0.28789575,3907.7,3905.3,3.0]
[1734474202363,0.23337933,3907.6,3905.3,3.0]
[1734474202565,0.23337933,3907.5,3905.3,3.0]
[1734474202763,0.23337933,3907.4,3905.3,3.0]
[1734474202996,0.23338714,3907.3,3905.3,3.0]
[1734474203299,0.83099585,3907.2,3905.5,0.63770525]
[1734474203455,2.55952,3907.0,3904.8,0.0290497]
[1734474203660,0.87291416,3906.9,3904.8,0.0290497]
[1734474203971,3.40058159,3906.8,3904.8,0.0290497]
[1734474204297,0.03200257,3906.7,3904.8,0.0290497]
[1734474204519,0.84467137,3906.7,3904.8,0.0290497]
[1734474204823,0.03200257,3906.9,3904.8,0.36059041]
[1734474205027,0.26657314,3906.6,3904.8,0.36059041]
[1734474205238,0.84442638,3906.5,3904.8,0.36059041]
[1734474205387,0.84442638,3906.4,3904.8,0.36059041]
[1734474205591,0.84442638,3906.3,3904.8,0.50420873]
[1734474205791,0.60985581,3906.2,3904.9,0.67777612]
[1734474205996,2.56035,3905.8,3904.8,0.0290497]
[1734474206197,0.87638291,3905.7,3904.8,0.0290497]
[1734474206419,0.84437295,3905.6,3904.8,0.0290497]
[1734474206625,0.84437295,3905.5,3904.1,0.1035]
[1734474206798,3.43695291,3905.4,3903.5,0.37410901]
[1734474207008,0.84437295,3905.3,3903.5,0.37410901]
[1734474207212,0.84437295,3905.2,3903.5,0.37410901]
[1734474207406,0.60985581,3905.1,3903.5,0.37410901]
[1734474207607,0.799,3904.9,3903.5,0.37410901]
[1734474207944,0.23407398,3904.8,3903.5,0.37410901]
[1734474208097,0.26608822,3904.7,3903.5,0.27060901]
[1734474208298,0.84242952,3904.6,3903.5,0.22060901]
[1734474208525,0.84242952,3904.5,3902.2,0.01284328]
[1734474208729,0.16734438,3904.6,3902.1,0.1035]
[1734474208730,2.56148,3904.0,3902.1,0.1035]
[1734474208927,0.799,3903.8,3902.1,0.1035]
[1734474209142,0.60857757,3903.7,3902.2,0.01285152]
[1734474209354,0.23407398,3903.6,3902.1,0.1035]
[1734474209525,0.799,3903.8,3902.1,0.1035]
[1734474209727,0.23349885,3903.7,3902.1,0.1035]
[1734474209941,0.03202781,3904.5,3902.1,0.1035]
[1734474209942,0.23349885,3903.6,3903.1,3.0]
[1734474210151,0.03202064,3904.2,3903.2,0.3]
[1734474210353,0.03202064,3904.2,3902.1,0.1035]
[1734474210354,0.23337508,3904.1,3902.1,0.1035]
[1734474210526,2.56158,3903.9,3902.1,0.1035]
[1734474210725,0.2333738,3903.8,3902.1,0.1035]
[1734474210936,0.2333738,3903.7,3902.2,0.01285253]
[1734474211138,0.799,3904.5,3902.2,0.01285253]
[1734474211362,0.26541022,3904.4,3902.2,0.01285253]
[1734474211570,0.23339145,3904.3,3902.2,0.01285253]
[1734474211871,0.23330011,3904.2,3902.2,0.67707737]
[1734474212072,0.799,3904.5,3902.2,0.67707737]
[1734474212366,0.23330747,3904.4,3902.3,0.1035]
[1734474212568,0.23330747,3904.3,3902.5,3.37705248]
[1734474212773,0.8278,3905.1,3902.7,0.1035]
[1734474212990,0.23333842,3905.0,3902.8,0.7318186]
[1734474213136,0.37339472,3905.4,3902.8,0.7318186]
[1734474213137,0.23333842,3904.9,3903.1,3.82355248]
[1734474213332,0.37339472,3905.6,3903.2,3.01282413]
[1734474213538,0.60672713,3905.5,3903.2,3.01282413]
[1734474213870,0.60672713,3905.4,3903.9,3.0]
[1734474214079,0.40538811,3906.2,3904.0,0.73085525]
[1734474214374,0.84009404,3906.1,3904.0,0.73085525]
[1734474214574,0.8403425,3906.0,3904.0,0.73085525]
[1734474214873,0.85980721,3906.3,3904.1,0.0128149]
[1734474214874,0.60698557,3905.9,3904.1,0.0128149]
[1734474215074,0.23345599,3905.8,3904.1,0.0128149]
[1734474215270,0.23345599,3905.7,3904.2,0.37436701]
[1734474215573,0.85980721,3906.3,3904.2,0.37436701]
[1734474215574,0.23345599,3905.6,3904.2,0.37436701]
[1734474215775,0.23345599,3905.5,3904.2,0.37436701]
[1734474216091,0.37352958,3905.8,3904.2,0.37436701]
[1734474216253,0.60713134,3905.7,3904.2,0.37436701]
[1734474216442,0.23360176,3905.6,3904.2,0.37436701]
[1734474216777,0.23360176,3905.5,3904.3,0.01281388]
[1734474216964,0.37399501,3906.1,3904.2,0.38717811]
[1734474217170,0.60775331,3906.0,3904.2,0.38717811]
[1734474217479,0.8278,3906.3,3904.2,0.38717811]
[1734474217776,0.84232648,3906.2,3904.2,0.38717811]
[1734474217949,0.84232648,3906.1,3904.3,3.12118152]
[1734474218149,3.41937443,3906.9,3904.3,3.12118152]
[1734474218150,0.60834415,3906.0,3904.4,3.36364528]
[1734474218374,0.84243576,3905.9,3904.4,3.36364528]
[1734474218575,0.60834415,3905.8,3904.4,3.36364528]
[1734474218880,0.23397852,3905.7,3904.4,3.36364528]
[1734474219174,0.23397852,3905.6,3904.5,0.68591938]
[1734474219374,0.23397852,3905.5,3904.6,0.01280932]
[1734474219583,2.93434993,3906.8,3904.6,0.01280932]
[1734474219806,1.87560758,3906.7,3904.6,0.01280932]
[1734474219996,0.84308271,3906.6,3904.7,0.40495647]
[1734474220157,0.84308271,3906.5,3904.7,0.40495647]